fUSD/lending_fUSD_20240426
["ID","MTS","AMOUNT","RATE_DAILY","PERIOD"]
[323586719,1714097458516,-500.0,0.00011506,2]
[323586720,1714097458525,-500.0,0.00011506,2]
[323586721,1714097458534,-508.44,0.00011506,2]
[323586722,1714097458544,-500.0,0.00011506,2]
[323586723,1714097458553,-654.32,0.00011506,2]
[323586724,1714097458563,-510.14902847,0.00011506,2]
[323586725,1714097458572,-500.0,0.00011506,2]
[323586726,1714097458582,-500.0,0.00011506,2]
[323586727,1714097458591,-603.38,0.00011506,2]
[323586728,1714097458601,-1095.27,0.00011506,2]
[323586729,1714097458610,-500.0,0.00011506,2]
[323586730,1714097458620,-500.0,0.00011506,2]
[323586731,1714097458629,-672.76,0.00011506,2]
[323586732,1714097458641,-500.0,0.00011506,2]
[323586733,1714097458652,-500.0,0.00011506,2]
[323586734,1714097458662,-500.0,0.00011506,2]
[323586735,1714097458671,-500.0,0.00011506,2]
[323586736,1714097458681,-500.0,0.00011506,2]
[323586737,1714097458694,-500.0,0.00011506,2]
[323586738,1714097458703,-500.0,0.00011506,2]
[323586739,1714097458712,-500.0,0.00011506,2]
[323586740,1714097458722,-500.0,0.00011506,2]
[323586741,1714097458731,-500.0,0.00011506,2]
[323586742,1714097458740,-500.0,0.00011506,2]
[323586743,1714097458750,-500.0,0.00011506,2]
[323586744,1714097458760,-500.0,0.00011506,2]
[323586745,1714097458771,-506.61,0.00011506,2]
[323586746,1714097458780,-717.5,0.00011506,2]
[323586747,1714097458789,-500.0,0.00011506,2]
[323586748,1714097458798,-500.0,0.00011506,2]
[323586749,1714097458807,-500.0,0.00011506,2]
[323586750,1714097458818,-500.0,0.00011506,2]
[323586751,1714097458828,-500.0,0.00011506,2]
[323586752,1714097458838,-500.0,0.00011506,2]
[323586753,1714097458847,-500.0,0.00011506,2]
[323586754,1714097458857,-500.0,0.00011506,2]
[323586755,1714097458868,-500.0,0.00011506,2]
[323586756,1714097458877,-500.0,0.00011506,2]
[323586757,1714097458886,-500.0,0.00011506,2]
[323586758,1714097458898,-500.0,0.00011506,2]
[323586759,1714097458907,-500.0,0.00011506,2]
[323586760,1714097458918,-368.24,0.00011506,2]
[323586761,1714097458927,-500.0,0.00011506,2]
[323586762,1714097458937,-500.0,0.00011506,2]
[323586763,1714097458946,-500.0,0.00011506,2]
[323586764,1714097458955,-500.0,0.00011506,2]
[323586765,1714097458964,-500.0,0.00011506,2]
[323586766,1714097458972,-500.0,0.00011506,2]
[323586767,1714097458981,-521.35146512,0.00011506,2]
[323586768,1714097458991,-749.71,0.00011506,2]
[323586769,1714097459000,-500.0,0.00011506,2]
[323586770,1714097459009,-500.0,0.00011506,2]
[323586771,1714097459019,-500.0,0.00011506,2]
[323586772,1714097459028,-1694.29,0.00011506,2]
[323586773,1714097459038,-604.45,0.00011506,2]
[323586774,1714097459048,-500.0,0.00011506,2]
[323586775,1714097459057,-500.0,0.00011506,2]
[323586776,1714097459066,-521.27,0.00011506,2]
[323586777,1714097459076,-500.0,0.00011506,2]
[323586778,1714097459086,-500.0,0.00011506,2]
[323586779,1714097459098,-500.0,0.00011506,2]
[323586780,1714097459108,-1005.35,0.00011506,2]
[323586781,1714097459118,-500.0,0.00011506,2]
[323586782,1714097459127,-500.0,0.00011506,2]
[323586783,1714097459137,-576.62,0.00011506,2]
[323586784,1714097459147,-500.0,0.00011506,2]
[323586785,1714097459158,-506.01907704,0.00011506,2]
[323586786,1714097459167,-500.0,0.00011506,2]
[323586787,1714097459176,-888.62,0.00011506,2]
[323586788,1714097459186,-500.0,0.00011506,2]
[323586789,1714097459195,-500.0,0.00011506,2]
[323586790,1714097459205,-507.07229319,0.00011506,2]
[323586791,1714097459214,-500.0,0.00011506,2]
[323586792,1714097459223,-500.0,0.00011506,2]
[323586793,1714097459232,-680.83,0.00011506,2]
[323586794,1714097459242,-605.54,0.00011506,2]
[323586795,1714097459251,-500.0,0.00011506,2]
[323586796,1714097459260,-391.64822912,0.00011506,2]
[323586797,1714097459270,-500.0,0.00011506,2]
[323586798,1714097459279,-849.55,0.00011506,2]
[323586799,1714097459289,-500.0,0.00011506,2]
[323586800,1714097459299,-500.0,0.00011506,2]
[323586801,1714097459308,-500.0,0.00011506,2]
[323586802,1714097459319,-548.57127324,0.00011506,2]
[323586803,1714097459328,-500.0,0.00011506,2]
[323586804,1714097459522,-500.0,0.00011506,2]
[323586805,1714097459543,-500.0,0.00011506,2]
[323586806,1714097459552,-500.0,0.00011506,2]
[323586807,1714097459560,-577.42,0.00011506,2]
[323586808,1714097459570,-500.0,0.00011506,2]
[323586809,1714097459579,-500.0,0.00011506,2]
[323586810,1714097459588,-646.0,0.00011506,2]
[323586811,1714097459597,-500.0,0.00011506,2]
[323586812,1714097459606,-2464.94,0.00011506,2]
[323586813,1714097459616,-500.0,0.00011506,2]
[323586814,1714097459625,-525.2588074,0.00011506,2]
[323586815,1714097459635,-500.0,0.00011506,2]
[323586816,1714097459645,-500.0,0.00011506,2]
[323586817,1714097459656,-500.0,0.00011506,2]
[323586818,1714097459665,-500.0,0.00011506,2]
[323586819,1714097459674,-500.0,0.00011506,2]
[323586820,1714097459683,-500.0,0.00011506,2]
[323586821,1714097459695,-1424.97,0.00011506,2]
[323586822,1714097459706,-500.0,0.00011506,2]
[323586823,1714097459715,-500.0,0.00011506,2]
[323586824,1714097459725,-500.0,0.00011506,2]
[323586825,1714097459738,-500.0,0.00011506,2]
[323586826,1714097459747,-534.1,0.00011506,2]
[323586827,1714097459755,-500.0,0.00011506,2]
[323586828,1714097459766,-500.0,0.00011506,2]
[323586829,1714097459776,-7733.31,0.00011506,2]
[323586830,1714097459788,-505.9143474,0.00011506,2]
[323586831,1714097459798,-500.0,0.00011506,2]
[323586832,1714097459808,-500.0,0.00011506,2]
[323586833,1714097459817,-500.0,0.00011506,2]
[323586834,1714097459826,-500.0,0.00011506,2]
[323586835,1714097459835,-524.9221226,0.00011506,2]
[323586836,1714097459844,-500.0,0.00011506,2]
[323586837,1714097459853,-3733.31,0.00011506,2]
[323586838,1714097459863,-500.0,0.00011506,2]
[323586839,1714097459872,-500.0,0.00011506,2]
[323586840,1714097459881,-874.68,0.00011506,2]
[323586841,1714097459890,-591.51713856,0.00011506,2]
[323586842,1714097459902,-1033.4,0.00011506,2]
[323586843,1714097459911,-500.0,0.00011506,2]
[323586844,1714097459921,-500.0,0.00011506,2]
[323586845,1714097459930,-500.0,0.00011506,2]
[323586846,1714097459940,-500.0,0.00011506,2]
[323586847,1714097459949,-2674.71,0.00011506,2]
[323586848,1714097459958,-500.0,0.00011506,2]
[323586849,1714097459967,-500.0,0.00011506,2]
[323586850,1714097459976,-500.0,0.00011506,2]
[323586851,1714097459986,-500.0,0.00011506,2]
[323586852,1714097459995,-500.0,0.00011506,2]
[323586853,1714097460005,-500.0,0.00011506,2]
[323586854,1714097460014,-274.34244575,0.00011506,2]
[323586855,1714097460023,-500.0,0.00011506,2]
[323586856,1714097460032,-500.0,0.00011506,2]
[323586857,1714097460042,-500.0,0.00011506,2]
[323586858,1714097460051,-500.0,0.00011506,2]
[323586859,1714097460061,-500.0,0.00011506,2]
[323586860,1714097460070,-500.0,0.00011506,2]
[323586861,1714097460080,-500.0,0.00011506,2]
[323586862,1714097460089,-904.78,0.00011506,2]
[323586863,1714097460099,-500.0,0.00011506,2]
[323586864,1714097460109,-867.14,0.00011506,2]
[323586865,1714097460118,-1256.3,0.00011506,2]
[323586866,1714097460127,-590.09888633,0.00011506,2]
[323586867,1714097460137,-500.0,0.00011506,2]
[323586868,1714097460147,-500.0,0.00011506,2]
[323586869,1714097460162,-4702.46,0.00011506,2]
[323586870,1714097460171,-500.0,0.00011506,2]
[323586871,1714097460181,-500.0,0.00011506,2]
[323586872,1714097460191,-765.45,0.00011506,2]
[323586873,1714097460200,-1236.49,0.00011506,2]
[323586874,1714097460209,-500.0,0.00011506,2]
[323586875,1714097460219,-500.0,0.00011506,2]
[323586876,1714097460228,-500.0,0.00011506,2]
[323586877,1714097460238,-5632.57,0.00011506,2]
[323586878,1714097460247,-500.0,0.00011506,2]
[323586879,1714097460257,-804.99,0.00011506,2]
[323586880,1714097460266,-500.0,0.00011506,2]
[323586881,1714097460276,-500.0,0.00011506,2]
[323586882,1714097460285,-500.0,0.00011506,2]
[323586883,1714097460295,-1123.21,0.00011506,2]
[323586884,1714097460305,-500.0,0.00011506,2]
[323586885,1714097460314,-500.0,0.00011506,2]
[323586886,1714097460324,-500.0,0.00011506,2]
[323586887,1714097460333,-500.0,0.00011506,2]
[323586888,1714097460343,-554.81,0.00011506,2]
[323586889,1714097460352,-500.0,0.00011506,2]
[323586890,1714097460361,-593.82668336,0.00011506,2]
[323586891,1714097460371,-500.0,0.00011506,2]
[323586892,1714097460380,-500.0,0.00011506,2]
[323586893,1714097460390,-500.0,0.00011506,2]
[323586894,1714097460402,-500.0,0.00011506,2]
[323586895,1714097460411,-890.88,0.00011506,2]
[323586896,1714097460421,-500.0,0.00011506,2]
[323586897,1714097460430,-1122.46,0.00011506,2]
[323586898,1714097460439,-150.72109748,0.00011506,2]
[323586899,1714097460449,-500.0,0.00011506,2]
[323586900,1714097460458,-500.0,0.00011506,2]
[323586901,1714097460467,-641.54,0.00011506,2]
[323586902,1714097460477,-500.73,0.00011506,2]
[323586903,1714097460486,-500.0,0.00011506,2]
[323586904,1714097460495,-1076.51,0.00011506,2]
[323586905,1714097460505,-507.59832257,0.00011506,2]
[323586906,1714097460514,-554.56,0.00011506,2]
[323586907,1714097460523,-500.0,0.00011506,2]
[323586908,1714097460532,-800.54,0.00011506,2]
[323586909,1714097460542,-500.0,0.00011506,2]
[323586910,1714097460551,-500.0,0.00011506,2]
[323586911,1714097460561,-1255.02,0.00011506,2]
[323586912,1714097460571,-500.0,0.00011506,2]
[323586913,1714097460580,-602.89,0.00011506,2]
[323586914,1714097460590,-968.15,0.00011506,2]
[323586915,1714097460599,-519.99,0.00011506,2]
[323586916,1714097460610,-500.0,0.00011506,2]
[323586917,1714097460619,-500.0,0.00011506,2]
[323586918,1714097460629,-500.0,0.00011506,2]
[323586919,1714097460638,-500.0,0.00011506,2]
[323586920,1714097460648,-500.0,0.00011506,2]
[323586921,1714097460659,-500.0,0.00011506,2]
[323586922,1714097460668,-500.0,0.00011506,2]
[323586923,1714097460678,-500.0,0.00011506,2]
[323586924,1714097460689,-500.0,0.00011506,2]
[323586925,1714097460698,-641.07,0.00011506,2]
[323586926,1714097460708,-518.17170817,0.00011506,2]
[323586927,1714097460717,-500.0,0.00011506,2]
[323586928,1714097460727,-500.0,0.00011506,2]
[323586929,1714097460736,-500.0,0.00011506,2]
[323586930,1714097460745,-11388.84,0.00011506,2]
[323586931,1714097460755,-500.0,0.00011506,2]
[323586932,1714097460766,-530.86,0.00011506,2]
[323586933,1714097460776,-3939.86,0.00011506,2]
[323586934,1714097460786,-500.0,0.00011506,2]
[323586935,1714097460796,-3012.08,0.00011506,2]
[323586936,1714097460806,-500.0,0.00011506,2]
[323586937,1714097460816,-500.0,0.00011506,2]
[323586938,1714097460826,-1947.45,0.00011506,2]
[323586939,1714097460837,-500.0,0.00011506,2]
[323586940,1714097460846,-500.0,0.00011506,2]
[323586941,1714097460856,-500.0,0.00011506,2]
[323586942,1714097460867,-500.0,0.00011506,2]
[323586943,1714097460877,-3849.55,0.00011506,2]
[323586944,1714097460886,-500.0,0.00011506,2]
[323586945,1714097460895,-500.0,0.00011506,2]
[323586946,1714097460906,-500.0,0.00011506,2]
[323586947,1714097460916,-749.89,0.00011506,2]
[323586948,1714097460925,-851.54,0.00011506,2]
[323586949,1714097460934,-1554.02,0.00011506,2]
[323586950,1714097460943,-500.0,0.00011506,2]
[323586951,1714097460953,-500.0,0.00011506,2]
[323586952,1714097460962,-500.0,0.00011506,2]
[323586953,1714097460972,-500.0,0.00011506,2]
[323586954,1714097460981,-500.0,0.00011506,2]
[323586955,1714097460990,-728.67,0.00011506,2]
[323586956,1714097461000,-500.0,0.00011506,2]
[323586957,1714097461011,-506.58856224,0.00011506,2]
[323586958,1714097461022,-506.65028389,0.00011506,2]
[323586959,1714097461031,-500.0,0.00011506,2]
[323586960,1714097461041,-500.0,0.00011506,2]
[323586961,1714097461051,-500.0,0.00011506,2]
[323586962,1714097461061,-510.76,0.00011506,2]
[323586963,1714097461071,-500.0,0.00011506,2]
[323586964,1714097461082,-500.0,0.00011506,2]
[323586965,1714097461093,-500.0,0.00011506,2]
[323586966,1714097461103,-500.0,0.00011506,2]
[323586967,1714097461115,-505.46325306,0.00011506,2]
[323586968,1714097461124,-500.0,0.00011506,2]
[323586969,1714097461134,-503.50534679,0.00011506,2]
[323586970,1714097461144,-500.0,0.00011506,2]
[323586971,1714097461154,-500.0,0.00011506,2]
[323586972,1714097461164,-500.0,0.00011506,2]
[323586973,1714097461173,-3062.0,0.00011506,2]
[323586974,1714097461183,-500.0,0.00011506,2]
[323586975,1714097461193,-909.5,0.00011506,2]
[323586976,1714097461202,-1470.35,0.00011506,2]
[323586977,1714097461213,-500.0,0.00011506,2]
[323586978,1714097461223,-500.0,0.00011506,2]
[323586979,1714097461233,-792.3,0.00011506,2]
[323586980,1714097461243,-500.0,0.00011506,2]
[323586981,1714097461252,-500.0,0.00011506,2]
[323586982,1714097461263,-506.7427608,0.00011506,2]
[323586983,1714097461274,-500.0,0.00011506,2]
[323586984,1714097461284,-1188.8,0.00011506,2]
[323586985,1714097461294,-500.0,0.00011506,2]
[323586986,1714097461303,-921.85,0.00011506,2]
[323586987,1714097461313,-549.28,0.00011506,2]
[323586988,1714097461323,-500.0,0.00011506,2]
[323586989,1714097461333,-500.0,0.00011506,2]
[323586990,1714097461343,-858.61,0.00011506,2]
[323586991,1714097461354,-2122.64,0.00011506,2]
[323586992,1714097461364,-1451.82,0.00011506,2]
[323586993,1714097461374,-1072.02,0.00011506,2]
[323586994,1714097461383,-500.0,0.00011506,2]
[323586995,1714097461393,-930.86,0.00011506,2]
[323586996,1714097461404,-500.0,0.00011506,2]
[323586997,1714097461413,-536.87,0.00011506,2]
[323586998,1714097461422,-1254.01,0.00011506,2]
[323586999,1714097461432,-500.0,0.00011506,2]
[323587000,1714097461442,-624.93,0.00011506,2]
[323587001,1714097461452,-500.0,0.00011506,2]
[323587002,1714097461461,-957.97,0.00011506,2]
[323587003,1714097461471,-500.0,0.00011506,2]
[323587004,1714097461481,-500.0,0.00011506,2]
[323587005,1714097461491,-1244.11,0.00011506,2]
[323587006,1714097461501,-500.57,0.00011506,2]
[323587007,1714097461510,-3654.52,0.00011506,2]
[323587008,1714097461520,-500.0,0.00011506,2]
[323587009,1714097461530,-500.0,0.00011506,2]
[323587010,1714097461539,-1167.9,0.00011506,2]
[323587011,1714097461549,-500.0,0.00011506,2]
[323587012,1714097461559,-1045.55,0.00011506,2]
[323587013,1714097461569,-500.0,0.00011506,2]
[323587014,1714097461578,-500.0,0.00011506,2]
[323587015,1714097461587,-500.0,0.00011506,2]
[323587016,1714097461597,-500.0,0.00011506,2]
[323587017,1714097461607,-845.91,0.00011506,2]
[323587018,1714097461616,-554.43,0.00011506,2]
[323587019,1714097461626,-2655.55,0.00011506,2]
[323587020,1714097461636,-500.0,0.00011506,2]
[323587021,1714097461646,-500.0,0.00011506,2]
[323587022,1714097461658,-500.0,0.00011506,2]
[323587023,1714097461668,-500.0,0.00011506,2]
[323587024,1714097461678,-1413.14,0.00011506,2]
[323587025,1714097461689,-500.0,0.00011506,2]
[323587026,1714097461700,-633.9,0.00011506,2]
[323587027,1714097461710,-511.51264579,0.00011506,2]
[323587028,1714097461720,-500.0,0.00011506,2]
[323587029,1714097461730,-500.0,0.00011506,2]
[323587030,1714097461741,-500.0,0.00011506,2]
[323587031,1714097461751,-500.0,0.00011506,2]
[323587032,1714097461760,-1271.02,0.00011506,2]
[323587033,1714097461771,-500.0,0.00011506,2]
[323587034,1714097461781,-1489.29,0.00011506,2]
[323587035,1714097461791,-500.0,0.00011506,2]
[323587036,1714097461801,-776.85,0.00011506,2]
[323587037,1714097461811,-562.95,0.00011506,2]
[323587038,1714097461821,-500.0,0.00011506,2]
[323587039,1714097461830,-660.15,0.00011506,2]
[323587040,1714097461840,-500.0,0.00011506,2]
[323587041,1714097461850,-872.1,0.00011506,2]
[323587042,1714097461859,-566.47701428,0.00011506,2]
[323587043,1714097461869,-500.0,0.00011506,2]
[323587044,1714097461879,-510.71,0.00011506,2]
[323587045,1714097461888,-884.83,0.00011506,2]
[323587046,1714097461898,-500.0,0.00011506,2]
[323587047,1714097461910,-500.0,0.00011506,2]
[323587048,1714097461919,-150.0,0.00011567,2]
[323587049,1714097461928,-876.0,0.00011586,2]
[323587050,1714097461938,-302.34,0.000116,2]
[323587051,1714097462007,-601.119,0.00011609,2]
[323587052,1714097462017,-5104.50676261,0.00011614,2]
[323587053,1714097462026,-294.1,0.0001162,2]
[323587054,1714097462035,-150.0,0.00011631,2]
[323587055,1714097462045,-168.4337442,0.00011662,2]
[323587056,1714097462054,-6528.54627523,0.00011678,2]
[323587057,1714097462063,-164.50524724,0.0001168,2]
[323587058,1714097462072,-1000.0,0.00011685,2]
[323587059,1714097462081,-500.0,0.00011685,2]
[323587060,1714097462090,-500.0,0.00011685,2]
[323587061,1714097462099,-1000.0,0.00011685,2]
[323587062,1714097462108,-1000.0,0.00011685,2]
[323587063,1714097462118,-1000.0,0.00011685,2]
[323587064,1714097462127,-500.0,0.00011685,2]
[323587065,1714097462137,-169.1356673,0.00011721,2]
[323587066,1714097462146,-150.0,0.00011727,2]
[323587067,1714097462157,-1360.3657988,0.00011767,2]
[323587068,1714097462166,-11970.1354271,0.00011767,2]
[323587069,1714097462175,-294.1,0.0001177,2]
[323587070,1714097462185,-1769.8684674,0.0001177,2]
[323587071,1714097462195,-5104.50676261,0.00011775,2]
[323587072,1714097462205,-788.44944404,0.00011778,2]
[323587073,1714097462214,-894.66007363,0.00011778,2]
[323587074,1714097462223,-178.27181865,0.00011778,2]
[323587075,1714097462233,-633.0389243,0.00011779,2]
[323587076,1714097462242,-4458.46151934,0.00011779,2]
[323587077,1714097462252,-5160.82,0.00011779,2]
[323587078,1714097462261,-500.0,0.00011779,2]
[323587079,1714097462270,-500.0,0.00011779,2]
[323587080,1714097462280,-2591.1,0.00011779,2]
[323587081,1714097462289,-614.68,0.00011779,2]
[323587082,1714097462298,-500.0,0.00011779,2]
[323587083,1714097462307,-500.0,0.00011779,2]
[323587084,1714097462316,-1067.79,0.00011779,2]
[323587085,1714097462325,-718.23,0.00011779,2]
[323587086,1714097462335,-1041.2,0.00011779,2]
[323587087,1714097462344,-585.54661704,0.00011779,2]
[323587088,1714097462353,-1489.91,0.00011779,2]
[323587089,1714097462362,-833.69,0.00011779,2]
[323587090,1714097462372,-1303.19,0.00011779,2]
[323587091,1714097462381,-2892.99,0.00011779,2]
[323587092,1714097462390,-1755.88,0.00011779,2]
[323587093,1714097462400,-500.0,0.00011779,2]
[323587094,1714097462410,-702.49,0.00011779,2]
[323587095,1714097462420,-2555.28,0.00011779,2]
[323587096,1714097462429,-1195.57,0.00011779,2]
[323587097,1714097462440,-834.4,0.00011779,2]
[323587098,1714097462449,-523.76,0.00011779,2]
[323587099,1714097462459,-561.06,0.00011779,2]
[323587100,1714097462468,-500.0,0.0001178,2]
[323587101,1714097462477,-500.0,0.0001178,2]
[323587102,1714097462487,-500.0,0.0001178,2]
[323587103,1714097462496,-806.44,0.0001178,2]
[323587104,1714097462505,-438.02349451,0.0001178,2]
[323587105,1714097462514,-514.01,0.0001178,2]
[323587106,1714097462524,-500.0,0.0001178,2]
[323587107,1714097462533,-674.35,0.0001178,2]
[323587108,1714097462542,-500.0,0.0001178,2]
[323587109,1714097462552,-62.26636741,0.0001178,2]
[323587110,1714097462726,-361.69764431,0.0001178,2]
[323587111,1714097462737,-500.0,0.0001178,2]
[323587112,1714097462747,-500.0,0.0001178,2]
[323587113,1714097462757,-392.19502213,0.0001178,2]
[323587114,1714097462771,-107.80497787,0.0001178,2]
[323587115,1714097462781,-500.0,0.0001178,2]
[323587116,1714097462792,-775.16,0.0001178,2]
[323587117,1714097462802,-500.0,0.0001178,2]
[323587118,1714097462811,-500.0,0.0001178,2]
[323587119,1714097462820,-500.0,0.0001178,2]
[323587120,1714097462829,-500.0,0.0001178,2]
[323587121,1714097462838,-500.0,0.0001178,2]
[323587122,1714097462848,-307.89040499,0.0001178,2]
[323587123,1714097462861,-192.10959501,0.0001178,2]
[323587124,1714097462871,-160.19975145,0.0001178,2]
[323587125,1714097462883,-339.80024855,0.0001178,2]
[323587126,1714097462892,-304.23975145,0.0001178,2]
[323587127,1714097462904,-195.76024855,0.0001178,2]
[323587128,1714097462913,-500.0,0.0001178,2]
[323587129,1714097462921,-500.0,0.0001178,2]
[323587130,1714097462931,-500.0,0.0001178,2]
[323587131,1714097462941,-500.0,0.0001178,2]
[323587132,1714097462951,-500.0,0.0001178,2]
[323587133,1714097462961,-500.0,0.0001178,2]
[323587134,1714097462971,-500.0,0.0001178,2]
[323587135,1714097462980,-394.11616991,0.0001178,2]
[323587136,1714097462989,-500.0,0.0001178,2]
[323587137,1714097462999,-500.0,0.0001178,2]
[323587138,1714097463008,-500.0,0.0001178,2]
[323587139,1714097463018,-655.57,0.0001178,2]
[323587140,1714097463027,-500.0,0.0001178,2]
[323587141,1714097463037,-500.0,0.0001178,2]
[323587142,1714097463045,-500.0,0.0001178,2]
[323587143,1714097463055,-500.0,0.0001178,2]
[323587144,1714097463064,-500.0,0.0001178,2]
[323587145,1714097463073,-500.0,0.0001178,2]
[323587146,1714097463083,-500.0,0.0001178,2]
[323587147,1714097463092,-500.0,0.0001178,2]
[323587148,1714097463102,-488.68071308,0.0001178,2]
[323587149,1714097463112,-500.0,0.0001178,2]
[323587150,1714097463123,-500.0,0.0001178,2]
[323587151,1714097463132,-500.0,0.0001178,2]
[323587152,1714097463142,-500.0,0.0001178,2]
[323587153,1714097463152,-500.0,0.0001178,2]
[323587154,1714097463161,-385.50828892,0.0001178,2]
[323587155,1714097463170,-500.0,0.0001178,2]
[323587156,1714097463180,-809.64,0.0001178,2]
[323587157,1714097463189,-500.0,0.0001178,2]
[323587158,1714097463199,-500.0,0.0001178,2]
[323587159,1714097463208,-500.0,0.0001178,2]
[323587160,1714097463217,-500.0,0.0001178,2]
[323587161,1714097463227,-699.96,0.0001178,2]
[323587162,1714097463236,-500.0,0.0001178,2]
[323587163,1714097463245,-500.0,0.0001178,2]
[323587164,1714097463254,-500.0,0.0001178,2]
[323587165,1714097463263,-500.0,0.0001178,2]
[323587166,1714097463272,-500.0,0.0001178,2]
[323587167,1714097463281,-500.0,0.0001178,2]
[323587168,1714097463290,-500.0,0.0001178,2]
[323587169,1714097463299,-500.0,0.0001178,2]
[323587170,1714097463308,-884.52,0.0001178,2]
[323587171,1714097463317,-500.0,0.0001178,2]
[323587172,1714097463326,-500.0,0.0001178,2]
[323587173,1714097463335,-537.41,0.0001178,2]
[323587174,1714097463344,-500.0,0.0001178,2]
[323587175,1714097463354,-500.0,0.0001178,2]
[323587176,1714097463365,-870.61,0.0001178,2]
[323587177,1714097463375,-500.0,0.0001178,2]
[323587178,1714097463385,-500.0,0.0001178,2]
[323587179,1714097463395,-500.0,0.0001178,2]
[323587180,1714097463406,-824.93,0.0001178,2]
[323587181,1714097463415,-593.42,0.0001178,2]
[323587182,1714097463425,-500.0,0.0001178,2]
[323587183,1714097463435,-500.0,0.0001178,2]
[323587184,1714097463445,-500.0,0.0001178,2]
[323587185,1714097463454,-500.0,0.0001178,2]
[323587186,1714097463463,-512.38621043,0.0001178,2]
[323587187,1714097463472,-171.08836918,0.0001178,2]
[323587188,1714097463491,-328.91163082,0.0001178,2]
[323587189,1714097463499,-652.14,0.0001178,2]
[323587190,1714097463509,-500.0,0.0001178,2]
[323587191,1714097463517,-500.0,0.0001178,2]
[323587192,1714097463527,-654.33,0.0001178,2]
[323587193,1714097463536,-500.0,0.0001178,2]
[323587194,1714097463546,-500.0,0.0001178,2]
[323587195,1714097463556,-500.0,0.0001178,2]
[323587196,1714097463566,-400.73572966,0.0001178,2]
[323587197,1714097463579,-99.26427034,0.0001178,2]
[323587198,1714097463588,-500.0,0.0001178,2]
[323587199,1714097463597,-588.96,0.0001178,2]
[323587200,1714097463607,-290.03747382,0.0001178,2]
[323587201,1714097463618,-209.96252618,0.0001178,2]
[323587202,1714097463626,-617.47,0.0001178,2]
[323587203,1714097463636,-500.0,0.0001178,2]
[323587204,1714097463645,-500.0,0.0001178,2]
[323587205,1714097463656,-500.0,0.0001178,2]
[323587206,1714097463666,-94.00656389,0.0001178,2]
[323587207,1714097464752,-3043.02009772,0.00010958,2]
[323587208,1714097464773,-1050.0,0.00010958,2]
[323587209,1714097465705,-3142.10990228,0.00010958,2]
[323587210,1714097465715,-500.0,0.00010958,2]
[323587211,1714097465726,-500.0,0.00010958,2]
[323587212,1714097465737,-500.0,0.00010958,2]
[323587213,1714097465746,-502.01281993,0.00010958,2]
[323587214,1714097465756,-500.0,0.00010958,2]
[323587215,1714097465765,-500.0,0.00010958,2]
[323587216,1714097465776,-500.0,0.00011232,2]
[323587217,1714097465786,-1641.87728405,0.00011232,2]
[323587218,1714097465862,-500.0,0.00010958,2]